[Event "Betsys MČR v online bleskovém šachu 2021"]
[Site "Chess.com"]
[Date "2021.04.17"]
[Round "4"]
[White "tomasPardubice"]
[Black "pepca"]
[Result "1-0"]
[WhiteElo "2078"]
[BlackElo "1524"]
[TimeControl "180+1"]
[EndTime "9:36:17 PDT"]
[Termination "Uživatel tomasPardubice zvítězil po vzdání soupeře"]

1. e4 {[%clk 0:03:00.9]} 1... e5 {[%clk 0:02:58.2]} 2. Nf3 {[%clk 0:03:00.5]}
2... Nc6 {[%clk 0:02:57]} 3. Bb5 {[%clk 0:02:54.9]} 3... a6 {[%clk 0:02:56]} 4.
Ba4 {[%clk 0:02:54.3]} 4... d6 {[%clk 0:02:52.6]} 5. O-O {[%clk 0:02:53.4]} 5...
Nf6 {[%clk 0:02:44.3]} 6. Re1 {[%clk 0:02:49.2]} 6... Bg4 {[%clk 0:02:43.2]} 7.
c3 {[%clk 0:02:47.2]} 7... Be7 {[%clk 0:02:38.8]} 8. h3 {[%clk 0:02:42.2]} 8...
Bh5 {[%clk 0:02:37.1]} 9. d3 {[%clk 0:02:41.9]} 9... O-O {[%clk 0:02:34.5]} 10.
Nbd2 {[%clk 0:02:41.9]} 10... d5 {[%clk 0:02:28.3]} 11. g4 {[%clk 0:02:39]}
11... Bg6 {[%clk 0:02:24.2]} 12. Bxc6 {[%clk 0:02:34.8]} 12... bxc6 {[%clk
0:02:21.9]} 13. Nxe5 {[%clk 0:02:35.3]} 13... dxe4 {[%clk 0:02:17]} 14. Nxg6
{[%clk 0:02:34.9]} 14... fxg6 {[%clk 0:02:10.9]} 15. Nxe4 {[%clk 0:02:34.9]}
15... Nxe4 {[%clk 0:02:09.2]} 16. dxe4 {[%clk 0:02:34.7]} 16... Bh4 {[%clk
0:02:06.3]} 17. Be3 {[%clk 0:02:31.5]} 17... Qf6 {[%clk 0:02:04.2]} 18. Qe2
{[%clk 0:02:21]} 18... Rae8 {[%clk 0:01:56.2]} 19. Bd4 {[%clk 0:02:20.1]} 19...
Qf4 {[%clk 0:01:46.4]} 20. Rad1 {[%clk 0:02:09]} 20... Rf7 {[%clk 0:01:29.8]}
21. Rd2 {[%clk 0:01:54.2]} 21... Rfe7 {[%clk 0:01:17.9]} 22. e5 {[%clk
0:01:52.2]} 22... c5 {[%clk 0:01:15]} 23. Bxc5 {[%clk 0:01:44.3]} 23... Rxe5
{[%clk 0:01:12.8]} 24. Be3 {[%clk 0:01:44.3]} 24... Bxf2+ {[%clk 0:00:49.8]} 25.
Qxf2 {[%clk 0:01:42.4]} 25... Qxf2+ {[%clk 0:00:44.7]} 26. Kxf2 {[%clk
0:01:41.7]} 26... Rf8+ {[%clk 0:00:32.8]} 27. Kg2 {[%clk 0:01:37]} 27... Rfe8
{[%clk 0:00:27.4]} 28. Rde2 {[%clk 0:01:36.8]} 28... Kf7 {[%clk 0:00:24.2]} 29.
Rf2+ {[%clk 0:01:30.8]} 29... Ke6 {[%clk 0:00:22.1]} 30. Bd2 {[%clk 0:01:28.9]}
30... Rxe1 {[%clk 0:00:17.2]} 31. Bxe1 {[%clk 0:01:29]} 31... Kd7 {[%clk
0:00:16.8]} 32. Bd2 {[%clk 0:01:27.6]} 32... Kc6 {[%clk 0:00:15.1]} 33. Kf3
{[%clk 0:01:26.7]} 33... Rf8+ {[%clk 0:00:14.1]} 34. Ke2 {[%clk 0:01:26.7]}
34... Rxf2+ {[%clk 0:00:13.9]} 35. Kxf2 {[%clk 0:01:26.9]} 35... Kd5 {[%clk
0:00:14.4]} 36. Ke3 {[%clk 0:01:26.4]} 36... c5 {[%clk 0:00:14.6]} 37. b3 {[%clk
0:01:25.9]} 37... a5 {[%clk 0:00:14.6]} 38. c4+ {[%clk 0:01:24.9]} 38... Kc6
{[%clk 0:00:10.7]} 39. Bxa5 {[%clk 0:01:25.3]} 39... Kd6 {[%clk 0:00:10]} 40.
Bc3 {[%clk 0:01:25.1]} 40... Ke6 {[%clk 0:00:06.9]} 41. Bxg7 {[%clk 0:01:24.3]}
41... Kd6 {[%clk 0:00:07.1]} 42. Bf8+ {[%clk 0:01:24.2]} 42... Kc6 {[%clk
0:00:07.2]} 43. Kf4 {[%clk 0:01:24.4]} 1-0

[Event "Betsys MČR v online bleskovém šachu 2021"]
[Site "Chess.com"]
[Date "2021.04.17"]
[Round "4"]
[White "masodj"]
[Black "Tlaskin"]
[Result "1-0"]
[WhiteElo "1735"]
[BlackElo "1365"]
[TimeControl "180+1"]
[EndTime "9:36:17 PDT"]
[Termination "Uživatel masodj zvítězil na čas"]

1. e4 {[%clk 0:03:00.9]} 1... c5 {[%clk 0:02:58.7]} 2. d4 {[%clk 0:02:59.9]}
2... cxd4 {[%clk 0:02:56.5]} 3. c3 {[%clk 0:02:59.7]} 3... dxc3 {[%clk
0:02:55.2]} 4. Nxc3 {[%clk 0:02:59.5]} 4... Nc6 {[%clk 0:02:54.3]} 5. Bc4 {[%clk
0:02:57.9]} 5... e6 {[%clk 0:02:49.5]} 6. Nf3 {[%clk 0:02:56.4]} 6... Bb4 {[%clk
0:02:47.2]} 7. Qe2 {[%clk 0:02:55.8]} 7... Bxc3+ {[%clk 0:02:35.4]} 8. bxc3
{[%clk 0:02:56.7]} 8... Nge7 {[%clk 0:02:26.4]} 9. Ba3 {[%clk 0:02:50.5]} 9...
O-O {[%clk 0:02:06.2]} 10. Bd6 {[%clk 0:02:49.5]} 10... Re8 {[%clk 0:01:56.8]}
11. O-O {[%clk 0:02:47.5]} 11... a6 {[%clk 0:01:48.2]} 12. Rad1 {[%clk
0:02:45.9]} 12... b5 {[%clk 0:01:44.6]} 13. Bb3 {[%clk 0:02:44]} 13... Na5
{[%clk 0:01:38.2]} 14. Bc2 {[%clk 0:02:21.7]} 14... Nc4 {[%clk 0:01:34.9]} 15.
e5 {[%clk 0:02:20.8]} 15... Nf5 {[%clk 0:01:16.5]} 16. g4 {[%clk 0:02:07]} 16...
Nfxd6 {[%clk 0:01:10.5]} 17. exd6 {[%clk 0:02:03.2]} 17... Bb7 {[%clk
0:00:53.4]} 18. Be4 {[%clk 0:01:46.3]} 18... Bxe4 {[%clk 0:00:44]} 19. Qxe4
{[%clk 0:01:45.9]} 19... Qa5 {[%clk 0:00:35.3]} 20. Ng5 {[%clk 0:01:41]} 20...
g6 {[%clk 0:00:22]} 21. Qf3 {[%clk 0:01:34.3]} 21... Rf8 {[%clk 0:00:17.8]} 22.
Qh3 {[%clk 0:01:31.7]} 22... h5 {[%clk 0:00:14]} 23. gxh5 {[%clk 0:01:30.3]}
23... b4 {[%clk 0:00:10]} 24. hxg6 {[%clk 0:01:29.3]} 24... Qxg5+ {[%clk
0:00:09.7]} 25. Kh1 {[%clk 0:01:28.6]} 25... Kg7 {[%clk 0:00:07.8]} 26. Rg1
{[%clk 0:01:15.3]} 26... Qh6 {[%clk 0:00:06.9]} 27. gxf7+ {[%clk 0:01:09]} 27...
Kxf7 {[%clk 0:00:03.8]} 28. Qxh6 {[%clk 0:01:02.1]} 28... Rh8 {[%clk 0:00:02.7]}
29. Qg7+ {[%clk 0:00:56.6]} 1-0

[Event "Betsys MČR v online bleskovém šachu 2021"]
[Site "Chess.com"]
[Date "2021.04.17"]
[Round "4"]
[White "Maty_2010"]
[Black "BrunoT2"]
[Result "1-0"]
[WhiteElo "941"]
[BlackElo "1170"]
[TimeControl "180+1"]
[EndTime "9:36:23 PDT"]
[Termination "Uživatel Maty_2010 zvítězil na čas"]

1. e4 {[%clk 0:02:58.9]} 1... e5 {[%clk 0:02:58.9]} 2. Bc4 {[%clk 0:02:58.2]}
2... Bc5 {[%clk 0:02:54.2]} 3. Qh5 {[%clk 0:02:56.9]} 3... Qf6 {[%clk
0:02:53.4]} 4. Nf3 {[%clk 0:02:54.9]} 4... g6 {[%clk 0:02:44.1]} 5. Qg5 {[%clk
0:02:50.3]} 5... Qxg5 {[%clk 0:02:37.3]} 6. Nxg5 {[%clk 0:02:50.6]} 6... Nh6
{[%clk 0:02:35.1]} 7. d3 {[%clk 0:02:47.8]} 7... f6 {[%clk 0:02:03.8]} 8. Nh3
{[%clk 0:02:45.2]} 8... Nf7 {[%clk 0:01:58.7]} 9. Nc3 {[%clk 0:02:39.9]} 9...
O-O {[%clk 0:01:56]} 10. Bd2 {[%clk 0:02:39]} 10... Nc6 {[%clk 0:01:44.3]} 11.
O-O-O {[%clk 0:02:39]} 11... d6 {[%clk 0:01:40.6]} 12. Bh6 {[%clk 0:02:38.6]}
12... Re8 {[%clk 0:01:33.2]} 13. g4 {[%clk 0:02:26.4]} 13... Na5 {[%clk
0:01:18.3]} 14. Bd2 {[%clk 0:02:09]} 14... Nxc4 {[%clk 0:01:13.9]} 15. dxc4
{[%clk 0:02:08.3]} 15... Be6 {[%clk 0:01:13.4]} 16. b3 {[%clk 0:02:03.5]} 16...
a5 {[%clk 0:01:06.3]} 17. g5 {[%clk 0:02:03.3]} 17... fxg5 {[%clk 0:01:01.9]}
18. Nxg5 {[%clk 0:02:03.6]} 18... Nxg5 {[%clk 0:01:00.4]} 19. Bxg5 {[%clk
0:02:03.4]} 19... Kg7 {[%clk 0:00:59.6]} 20. h4 {[%clk 0:02:01.3]} 20... Bd4
{[%clk 0:00:47.7]} 21. Na4 {[%clk 0:01:55.9]} 21... Bd7 {[%clk 0:00:38.6]} 22.
h5 {[%clk 0:01:53.6]} 22... gxh5 {[%clk 0:00:28.4]} 23. Rxh5 {[%clk 0:01:51.1]}
23... Bxa4 {[%clk 0:00:25.3]} 24. bxa4 {[%clk 0:01:49.9]} 24... c6 {[%clk
0:00:15]} 25. Bh6+ {[%clk 0:01:47.3]} 25... Kg6 {[%clk 0:00:11]} 26. Rh4 {[%clk
0:01:43.6]} 26... b5 {[%clk 0:00:06.9]} 27. Rg1+ {[%clk 0:01:42.4]} 27... Kf6
{[%clk 0:00:06.1]} 28. Bg5+ {[%clk 0:01:39.2]} 28... Ke6 {[%clk 0:00:06]} 29.
Rh6+ {[%clk 0:01:38.5]} 29... Kd7 {[%clk 0:00:06]} 30. Rxh7+ {[%clk 0:01:37.5]}
30... Kc8 {[%clk 0:00:05.6]} 31. axb5 {[%clk 0:01:34.3]} 31... cxb5 {[%clk
0:00:05.2]} 32. cxb5 {[%clk 0:01:34.1]} 32... Rb8 {[%clk 0:00:05.3]} 33. c4
{[%clk 0:01:30.3]} 33... a4 {[%clk 0:00:04.1]} 34. c5 {[%clk 0:01:24.1]} 34...
dxc5 {[%clk 0:00:03.2]} 35. b6 {[%clk 0:01:23]} 35... Rxb6 {[%clk 0:00:02.4]}
36. Rgh1 {[%clk 0:01:22.8]} 36... Rb2 {[%clk 0:00:02.2]} 37. a3 {[%clk
0:01:20.3]} 37... Ra2 {[%clk 0:00:01.5]} 38. R1h6 {[%clk 0:01:19.6]} 38... Rb2
{[%clk 0:00:01.6]} 39. Rc6+ {[%clk 0:01:19.2]} 1-0

[Event "Betsys MČR v online bleskovém šachu 2021"]
[Site "Chess.com"]
[Date "2021.04.17"]
[Round "4"]
[White "jonasstach"]
[Black "Sunnika"]
[Result "0-1"]
[WhiteElo "2005"]
[BlackElo "2320"]
[TimeControl "180+1"]
[EndTime "9:36:25 PDT"]
[Termination "Uživatel Sunnika zvítězil po vzdání soupeře"]

1. d4 {[%clk 0:03:00.9]} 1... Nf6 {[%clk 0:02:59.3]} 2. Nf3 {[%clk 0:03:01.4]}
2... g6 {[%clk 0:02:59.4]} 3. c4 {[%clk 0:03:01.4]} 3... Bg7 {[%clk 0:02:59.3]}
4. Bf4 {[%clk 0:03:02]} 4... O-O {[%clk 0:02:56.3]} 5. Nc3 {[%clk 0:03:02.5]}
5... d6 {[%clk 0:02:55.6]} 6. e3 {[%clk 0:03:01.3]} 6... a6 {[%clk 0:02:55.8]}
7. Bd3 {[%clk 0:02:58.5]} 7... c6 {[%clk 0:02:55.9]} 8. Bc2 {[%clk 0:02:58.2]}
8... b5 {[%clk 0:02:56]} 9. cxb5 {[%clk 0:02:56.2]} 9... axb5 {[%clk 0:02:51.3]}
10. O-O {[%clk 0:02:54]} 10... Nbd7 {[%clk 0:02:49.5]} 11. Ne4 {[%clk
0:02:53.1]} 11... Bb7 {[%clk 0:02:43.7]} 12. h3 {[%clk 0:02:41.2]} 12... c5
{[%clk 0:02:34.9]} 13. Nxf6+ {[%clk 0:02:38.7]} 13... Bxf6 {[%clk 0:02:35]} 14.
Bh6 {[%clk 0:02:37.8]} 14... Re8 {[%clk 0:02:33.7]} 15. Bd3 {[%clk 0:02:24.9]}
15... c4 {[%clk 0:02:24.2]} 16. Bc2 {[%clk 0:02:17.7]} 16... d5 {[%clk
0:02:25.1]} 17. a4 {[%clk 0:02:08.8]} 17... b4 {[%clk 0:02:22.7]} 18. Re1 {[%clk
0:02:05.5]} 18... e5 {[%clk 0:02:14.6]} 19. dxe5 {[%clk 0:02:01.5]} 19... Nxe5
{[%clk 0:02:14.3]} 20. Bf4 {[%clk 0:01:47.1]} 20... Nxf3+ {[%clk 0:02:09.1]} 21.
Qxf3 {[%clk 0:01:48]} 21... b3 {[%clk 0:02:05.9]} 22. Bxg6 {[%clk 0:01:19.2]}
22... hxg6 {[%clk 0:02:03]} 23. h4 {[%clk 0:01:00.4]} 23... Bxh4 {[%clk
0:01:59.5]} 24. Qh3 {[%clk 0:00:58]} 24... Bf6 {[%clk 0:01:56.9]} 25. g4 {[%clk
0:00:53]} 25... Bxb2 {[%clk 0:01:55.7]} 26. Kh2 {[%clk 0:00:49.1]} 26... Bg7
{[%clk 0:01:49.4]} 27. Rab1 {[%clk 0:00:37.2]} 27... d4 {[%clk 0:01:44.6]} 28.
Rh1 {[%clk 0:00:37.4]} 28... Bxh1 {[%clk 0:01:42.4]} 29. Rxh1 {[%clk 0:00:36.5]}
29... b2 {[%clk 0:01:08.2]} 30. Kg2 {[%clk 0:00:36]} 30... Qd5+ {[%clk
0:01:06.6]} 31. Kg3 {[%clk 0:00:34.5]} 31... Qxh1 {[%clk 0:01:00.2]} 32. Qxh1
{[%clk 0:00:33.4]} 32... c3 {[%clk 0:00:53.5]} 33. exd4 {[%clk 0:00:31.5]} 33...
c2 {[%clk 0:00:50.5]} 0-1

[Event "Betsys MČR v online bleskovém šachu 2021"]
[Site "Chess.com"]
[Date "2021.04.17"]
[Round "4"]
[White "CZpeeeter"]
[Black "RunningPawnz88"]
[Result "1-0"]
[WhiteElo "1727"]
[BlackElo "1341"]
[TimeControl "180+1"]
[EndTime "9:36:25 PDT"]
[Termination "Uživatel CZpeeeter zvítězil po vzdání soupeře"]

1. d4 {[%clk 0:03:00.9]} 1... Nf6 {[%clk 0:02:58.2]} 2. Nf3 {[%clk 0:02:59.9]}
2... g6 {[%clk 0:02:58.3]} 3. c4 {[%clk 0:02:58.4]} 3... Bg7 {[%clk 0:02:58.5]}
4. Nc3 {[%clk 0:02:57.4]} 4... c6 {[%clk 0:02:56.8]} 5. Bg5 {[%clk 0:02:56.4]}
5... O-O {[%clk 0:02:56.2]} 6. e3 {[%clk 0:02:56]} 6... d5 {[%clk 0:02:53.1]} 7.
Bd3 {[%clk 0:02:49.9]} 7... Bg4 {[%clk 0:02:51.6]} 8. O-O {[%clk 0:02:45.8]}
8... Nbd7 {[%clk 0:02:49.8]} 9. h3 {[%clk 0:02:45.5]} 9... Bxf3 {[%clk
0:02:48.4]} 10. Qxf3 {[%clk 0:02:43.7]} 10... Ne8 {[%clk 0:02:41.5]} 11. cxd5
{[%clk 0:02:34.9]} 11... cxd5 {[%clk 0:02:38.5]} 12. Qxd5 {[%clk 0:02:31]} 12...
Nc7 {[%clk 0:02:34.1]} 13. Qb3 {[%clk 0:02:28.9]} 13... b6 {[%clk 0:02:31.5]}
14. Bc4 {[%clk 0:02:19.3]} 14... a5 {[%clk 0:02:17.2]} 15. a4 {[%clk 0:02:17.9]}
15... h6 {[%clk 0:02:10]} 16. Bf4 {[%clk 0:02:11]} 16... Nf6 {[%clk 0:02:03.4]}
17. Nb5 {[%clk 0:02:05.4]} 17... Nxb5 {[%clk 0:02:00.7]} 18. Bxb5 {[%clk
0:01:57.2]} 18... Ne4 {[%clk 0:01:59.2]} 19. Qd3 {[%clk 0:01:46.4]} 19... f5
{[%clk 0:01:51.9]} 20. f3 {[%clk 0:01:40.7]} 20... Nc5 {[%clk 0:01:46]} 21. dxc5
{[%clk 0:01:37.3]} 21... Qxd3 {[%clk 0:01:34.9]} 22. Bxd3 {[%clk 0:01:36.7]}
22... Bxb2 {[%clk 0:01:34.7]} 23. Rab1 {[%clk 0:01:35.6]} 23... Ba3 {[%clk
0:01:32.3]} 24. cxb6 {[%clk 0:01:35.3]} 24... g5 {[%clk 0:01:24.8]} 25. Bh2
{[%clk 0:01:34.6]} 25... Rad8 {[%clk 0:01:21.6]} 26. Bb5 {[%clk 0:01:24.9]}
26... Bd6 {[%clk 0:01:18]} 27. Bxd6 {[%clk 0:01:19.6]} 27... Rxd6 {[%clk
0:01:17.8]} 28. b7 {[%clk 0:01:19.6]} 28... Rb8 {[%clk 0:01:16.3]} 29. Bc4+
{[%clk 0:01:17.3]} 29... Kg7 {[%clk 0:01:15.4]} 30. Rb5 {[%clk 0:01:12.1]} 30...
Kf6 {[%clk 0:01:10.1]} 31. Rfb1 {[%clk 0:01:09.8]} 31... Rd7 {[%clk 0:01:04.7]}
32. Rb6+ {[%clk 0:01:07.9]} 32... e6 {[%clk 0:01:03.6]} 33. Rxe6+ {[%clk
0:01:04.8]} 33... Kg7 {[%clk 0:01:01.9]} 34. Reb6 {[%clk 0:01:03.4]} 34... h5
{[%clk 0:00:57.5]} 35. R1b5 {[%clk 0:00:59.3]} 35... Rc7 {[%clk 0:00:56.8]} 36.
Be6 {[%clk 0:00:49.5]} 36... Rc3 {[%clk 0:00:54]} 37. Bc8 {[%clk 0:00:44.3]}
37... Rxe3 {[%clk 0:00:49.7]} 38. Rxf5 {[%clk 0:00:43.8]} 38... Ra3 {[%clk
0:00:46.9]} 39. Rxg5+ {[%clk 0:00:42.8]} 39... Kf7 {[%clk 0:00:44.7]} 40. Rxa5
{[%clk 0:00:41.8]} 1-0

[Event "Betsys MČR v online bleskovém šachu 2021"]
[Site "Chess.com"]
[Date "2021.04.17"]
[Round "4"]
[White "tkokosek007"]
[Black "catanist19"]
[Result "0-1"]
[WhiteElo "1398"]
[BlackElo "1740"]
[TimeControl "180+1"]
[EndTime "9:36:26 PDT"]
[Termination "Uživatel catanist19 zvítězil na čas"]

1. d4 {[%clk 0:02:56.6]} 1... d5 {[%clk 0:02:58.9]} 2. Bf4 {[%clk 0:02:51.6]}
2... Bf5 {[%clk 0:02:56.2]} 3. e3 {[%clk 0:02:51]} 3... c6 {[%clk 0:02:54.9]} 4.
Nf3 {[%clk 0:02:50.9]} 4... Nf6 {[%clk 0:02:52.5]} 5. Be2 {[%clk 0:02:50.4]}
5... e6 {[%clk 0:02:51.7]} 6. Nbd2 {[%clk 0:02:50.1]} 6... Bd6 {[%clk
0:02:50.8]} 7. Bg3 {[%clk 0:02:48.6]} 7... Bxg3 {[%clk 0:02:49.6]} 8. hxg3
{[%clk 0:02:47.8]} 8... Qd6 {[%clk 0:02:48]} 9. Nb3 {[%clk 0:02:44.8]} 9... Nbd7
{[%clk 0:02:43.9]} 10. Bd3 {[%clk 0:02:38.9]} 10... Ne4 {[%clk 0:02:38.4]} 11.
Nh4 {[%clk 0:02:17.8]} 11... Bg6 {[%clk 0:02:15.5]} 12. Nxg6 {[%clk 0:02:13.7]}
12... fxg6 {[%clk 0:02:14.3]} 13. Qe2 {[%clk 0:01:53.2]} 13... Ndf6 {[%clk
0:02:09.3]} 14. O-O-O {[%clk 0:01:51.1]} 14... O-O {[%clk 0:02:01]} 15. f3
{[%clk 0:01:41.3]} 15... Nxg3 {[%clk 0:01:57]} 16. Rh3 {[%clk 0:01:32.9]} 16...
Nxe2+ {[%clk 0:01:54.9]} 17. Bxe2 {[%clk 0:01:32.3]} 17... e5 {[%clk 0:01:47.5]}
18. Rdh1 {[%clk 0:01:27.3]} 18... exd4 {[%clk 0:01:41.8]} 19. Nxd4 {[%clk
0:01:18.4]} 19... Qe5 {[%clk 0:01:37.1]} 20. f4 {[%clk 0:01:15.9]} 20... Qe7
{[%clk 0:01:33.1]} 21. Bd3 {[%clk 0:01:16]} 21... a6 {[%clk 0:01:30.1]} 22. Bxg6
{[%clk 0:01:11.6]} 22... hxg6 {[%clk 0:01:27.8]} 23. Nf3 {[%clk 0:00:55.9]}
23... Qxe3+ {[%clk 0:01:24.9]} 24. Kb1 {[%clk 0:00:51.6]} 24... Qxf4 {[%clk
0:01:24]} 25. Rh4 {[%clk 0:00:42.1]} 25... Qf5 {[%clk 0:01:22.5]} 26. Nd4 {[%clk
0:00:34.8]} 26... Qd7 {[%clk 0:01:16.7]} 27. Nf3 {[%clk 0:00:33.9]} 27... Rae8
{[%clk 0:01:06.5]} 28. Rh8+ {[%clk 0:00:20.8]} 28... Kf7 {[%clk 0:01:03.3]} 29.
Ng5+ {[%clk 0:00:20.8]} 29... Ke7 {[%clk 0:01:02]} 30. R8h3 {[%clk 0:00:14.6]}
30... Kd6 {[%clk 0:00:58.1]} 31. c4 {[%clk 0:00:04.7]} 31... Qf5+ {[%clk
0:00:54.4]} 0-1

[Event "Betsys MČR v online bleskovém šachu 2021"]
[Site "Chess.com"]
[Date "2021.04.17"]
[Round "4"]
[White "Jeff_CZE"]
[Black "kecalk"]
[Result "0-1"]
[WhiteElo "1852"]
[BlackElo "2145"]
[TimeControl "180+1"]
[EndTime "9:36:27 PDT"]
[Termination "Uživatel kecalk zvítězil na čas"]

1. d4 {[%clk 0:03:00.9]} 1... d5 {[%clk 0:02:52.7]} 2. c4 {[%clk 0:02:59.6]}
2... e6 {[%clk 0:02:47.3]} 3. Nf3 {[%clk 0:02:59.9]} 3... Nf6 {[%clk 0:02:46.9]}
4. g3 {[%clk 0:02:59]} 4... dxc4 {[%clk 0:02:46.1]} 5. Bg2 {[%clk 0:02:57.2]}
5... a6 {[%clk 0:02:45.2]} 6. a4 {[%clk 0:02:55.1]} 6... Nc6 {[%clk 0:02:44.8]}
7. e3 {[%clk 0:02:49]} 7... Rb8 {[%clk 0:02:41]} 8. O-O {[%clk 0:02:20.6]} 8...
Bd7 {[%clk 0:02:35.9]} 9. Qc2 {[%clk 0:02:16]} 9... b5 {[%clk 0:02:27.7]} 10.
Nbd2 {[%clk 0:02:13.9]} 10... Nb4 {[%clk 0:02:26.7]} 11. Qd1 {[%clk 0:02:08.3]}
11... Bc6 {[%clk 0:02:21.5]} 12. Ne5 {[%clk 0:01:52]} 12... Bxg2 {[%clk
0:02:18.3]} 13. Kxg2 {[%clk 0:01:52.9]} 13... Qd5+ {[%clk 0:02:11.9]} 14. Ndf3
{[%clk 0:01:34.9]} 14... Bd6 {[%clk 0:01:56.4]} 15. Bd2 {[%clk 0:01:32.4]} 15...
c5 {[%clk 0:01:52.3]} 16. dxc5 {[%clk 0:01:29.1]} 16... Bxc5 {[%clk 0:01:49.3]}
17. Bxb4 {[%clk 0:01:25.1]} 17... Bxb4 {[%clk 0:01:45.5]} 18. Qxd5 {[%clk
0:01:03.5]} 18... Nxd5 {[%clk 0:01:46.4]} 19. e4 {[%clk 0:01:02.1]} 19... Nf6
{[%clk 0:01:20.9]} 20. Nc6 {[%clk 0:01:00.2]} 20... Bd6 {[%clk 0:01:18.5]} 21.
Nxb8 {[%clk 0:00:57.7]} 21... Bxb8 {[%clk 0:01:19.4]} 22. axb5 {[%clk
0:00:56.6]} 22... axb5 {[%clk 0:01:20.3]} 23. Ra8 {[%clk 0:00:47.8]} 23... O-O
{[%clk 0:01:19.4]} 24. e5 {[%clk 0:00:30.1]} 24... Nd5 {[%clk 0:01:12]} 25. Nd4
{[%clk 0:00:23.5]} 25... Bxe5 {[%clk 0:01:06.3]} 26. Rxf8+ {[%clk 0:00:18.5]}
26... Kxf8 {[%clk 0:01:07.2]} 27. Nxb5 {[%clk 0:00:18.7]} 27... Bxb2 {[%clk
0:01:06.1]} 28. Rb1 {[%clk 0:00:16.4]} 28... c3 {[%clk 0:01:05.9]} 29. Kf3
{[%clk 0:00:12.7]} 29... c2 {[%clk 0:01:04.7]} 30. Rxb2 {[%clk 0:00:05]} 30...
c1=Q {[%clk 0:01:04.9]} 31. Re2 {[%clk 0:00:04.1]} 31... Qc6 {[%clk 0:01:03.1]}
32. Nd4 {[%clk 0:00:02.8]} 32... Qb7 {[%clk 0:01:00.8]} 0-1

[Event "Betsys MČR v online bleskovém šachu 2021"]
[Site "Chess.com"]
[Date "2021.04.17"]
[Round "4"]
[White "FormerProdigy"]
[Black "KajaOl"]
[Result "1-0"]
[WhiteElo "2858"]
[BlackElo "2362"]
[TimeControl "180+1"]
[EndTime "9:36:31 PDT"]
[Termination "Uživatel FormerProdigy zvítězil na čas"]

1. e4 {[%clk 0:03:00.9]} 1... e5 {[%clk 0:02:59.5]} 2. Nf3 {[%clk 0:03:00]} 2...
Nc6 {[%clk 0:02:59.7]} 3. Bc4 {[%clk 0:02:59.7]} 3... Bc5 {[%clk 0:02:58.4]} 4.
c3 {[%clk 0:02:59.7]} 4... Nf6 {[%clk 0:02:57.4]} 5. d3 {[%clk 0:02:59.8]} 5...
d6 {[%clk 0:02:56.5]} 6. O-O {[%clk 0:02:56.7]} 6... O-O {[%clk 0:02:55.3]} 7.
Re1 {[%clk 0:02:56.9]} 7... Bb6 {[%clk 0:02:53.9]} 8. a4 {[%clk 0:02:43.4]} 8...
a5 {[%clk 0:02:48.9]} 9. Bg5 {[%clk 0:02:39.1]} 9... h6 {[%clk 0:02:46.5]} 10.
Bh4 {[%clk 0:02:39.2]} 10... Kh8 {[%clk 0:02:17.2]} 11. Nbd2 {[%clk 0:02:17.2]}
11... g5 {[%clk 0:02:10.7]} 12. Bg3 {[%clk 0:02:17.1]} 12... Bg4 {[%clk
0:01:38.2]} 13. Nf1 {[%clk 0:02:11.5]} 13... Ne7 {[%clk 0:01:23.7]} 14. d4
{[%clk 0:01:52.6]} 14... exd4 {[%clk 0:01:06.2]} 15. cxd4 {[%clk 0:01:53.5]}
15... Ng6 {[%clk 0:00:45.8]} 16. Ne3 {[%clk 0:01:33.1]} 16... Be6 {[%clk
0:00:32.1]} 17. Qc2 {[%clk 0:00:56.1]} 17... Kh7 {[%clk 0:00:20.7]} 18. e5
{[%clk 0:00:48.7]} 18... dxe5 {[%clk 0:00:18.7]} 19. dxe5 {[%clk 0:00:35.8]}
19... Nd7 {[%clk 0:00:13.9]} 20. Rad1 {[%clk 0:00:33.6]} 20... Qe7 {[%clk
0:00:11.8]} 21. Nf5 {[%clk 0:00:30.2]} 21... Bxf5 {[%clk 0:00:11.1]} 22. Qxf5
{[%clk 0:00:31.1]} 22... Nc5 {[%clk 0:00:09.9]} 23. h4 {[%clk 0:00:27.5]} 1-0

[Event "Betsys MČR v online bleskovém šachu 2021"]
[Site "Chess.com"]
[Date "2021.04.17"]
[Round "4"]
[White "sipos88"]
[Black "Chessillusion213"]
[Result "0-1"]
[WhiteElo "1866"]
[BlackElo "2172"]
[TimeControl "180+1"]
[EndTime "9:36:31 PDT"]
[Termination "Uživatel Chessillusion213 zvítězil po vzdání soupeře"]

1. e4 {[%clk 0:02:54.5]} 1... c5 {[%clk 0:02:59.5]} 2. Nf3 {[%clk 0:02:53.9]}
2... Nc6 {[%clk 0:02:59.4]} 3. c3 {[%clk 0:02:54]} 3... d5 {[%clk 0:02:58.9]} 4.
Bd3 {[%clk 0:02:52]} 4... Nf6 {[%clk 0:02:51.5]} 5. exd5 {[%clk 0:02:41.2]} 5...
Nxd5 {[%clk 0:02:50.5]} 6. O-O {[%clk 0:02:38]} 6... g6 {[%clk 0:02:47.5]} 7.
Bc2 {[%clk 0:02:37.3]} 7... Bg7 {[%clk 0:02:46.3]} 8. d4 {[%clk 0:02:31.5]} 8...
cxd4 {[%clk 0:02:44.3]} 9. cxd4 {[%clk 0:02:27.2]} 9... O-O {[%clk 0:02:42.6]}
10. Be3 {[%clk 0:02:27]} 10... Bg4 {[%clk 0:02:39.7]} 11. Nc3 {[%clk 0:02:24.5]}
11... e5 {[%clk 0:02:12]} 12. dxe5 {[%clk 0:02:09.9]} 12... Nxe3 {[%clk
0:02:11.8]} 13. fxe3 {[%clk 0:02:05.9]} 13... Qb6 {[%clk 0:01:58.7]} 14. Nd5
{[%clk 0:01:50]} 14... Qd8 {[%clk 0:01:22.9]} 15. Nf6+ {[%clk 0:01:22.1]} 15...
Bxf6 {[%clk 0:01:22.5]} 16. exf6 {[%clk 0:01:21.7]} 16... Qxf6 {[%clk 0:01:16]}
17. b3 {[%clk 0:01:20.7]} 17... Qe7 {[%clk 0:01:06.4]} 18. e4 {[%clk 0:01:01.7]}
18... Rfd8 {[%clk 0:01:04.8]} 19. Qe1 {[%clk 0:00:53.8]} 19... Bxf3 {[%clk
0:00:44.1]} 20. Rxf3 {[%clk 0:00:50.5]} 20... Nd4 {[%clk 0:00:43.2]} 21. Rc3
{[%clk 0:00:43.8]} 21... Rac8 {[%clk 0:00:42.2]} 22. Rxc8 {[%clk 0:00:41.2]}
22... Rxc8 {[%clk 0:00:42.2]} 23. Bd3 {[%clk 0:00:41.5]} 23... Qe5 {[%clk
0:00:37.9]} 24. Rc1 {[%clk 0:00:37]} 24... Rd8 {[%clk 0:00:36.2]} 25. Qf2 {[%clk
0:00:29.4]} 25... Ne6 {[%clk 0:00:24.1]} 26. Qd2 {[%clk 0:00:19.9]} 26... Qd4+
{[%clk 0:00:22.5]} 27. Kh1 {[%clk 0:00:19.2]} 27... Qxd3 {[%clk 0:00:22.9]} 0-1